fUSD/lending_fUSD_20250611
["ID","MTS","AMOUNT","RATE_DAILY","PERIOD"]
[365425522,1749664251292,-410.0,0.00019506,2]
[365425523,1749664251301,-538.914135,0.00019506,2]
[365425524,1749664251310,-631.05,0.00019506,2]
[365425525,1749664251319,-490.0,0.00019506,2]
[365425526,1749664251329,-799.7,0.00019506,2]
[365425527,1749664251338,-1515.41,0.00019506,2]
[365425528,1749664251347,-616.92,0.00019506,2]
[365425529,1749664251356,-490.0,0.00019506,2]
[365425530,1749664251365,-490.0,0.00019506,2]
[365425531,1749664251375,-357.25895968,0.00019506,2]
[365425532,1749664251384,-854.08,0.00019506,2]
[365425533,1749664251393,-490.0,0.00019506,2]
[365425534,1749664251402,-490.0,0.00019506,2]
[365425535,1749664251411,-490.0,0.00019506,2]
[365425536,1749664251420,-490.0,0.00019506,2]
[365425537,1749664251429,-658.61572385,0.00019506,2]
[365425538,1749664251438,-156.42,0.00019506,2]
[365425539,1749664251447,-541.70927701,0.00019521,2]
[365425540,1749664251456,-1699.12219315,0.00019535,2]
[365425541,1749664251465,-207.23714623,0.00019535,2]
[365425542,1749664251474,-1186.528,0.00019535,2]
[365425543,1749664251484,-156.672943,0.00019548,2]
[365425544,1749664251493,-541.70927701,0.00019555,2]
[365425545,1749664251504,-200.0,0.00019586,2]
[365425546,1749664251514,-1143.31321848,0.00019586,2]
[365425547,1749664251525,-200.0,0.00019586,2]
[365425548,1749664251534,-200.0,0.00019586,2]
[365425549,1749664251543,-200.0,0.00019586,2]
[365425550,1749664251552,-541.70927701,0.0001959,2]
[365425551,1749664251561,-970.145931,0.00019597,2]
[365425552,1749664251570,-420.0,0.00019599,2]
[365425553,1749664251579,-156.672943,0.00019606,2]
[365425554,1749664251589,-541.70927701,0.00019624,2]
[365425555,1749664251599,-1699.12219315,0.00019626,2]
[365425556,1749664251608,-207.23714623,0.00019626,2]
[365425557,1749664251618,-541.70927701,0.00019659,2]
[365425558,1749664251627,-156.672943,0.00019665,2]
[365425559,1749664251636,-1211.37,0.00019669,2]
[365425560,1749664251646,-1211.37,0.00019669,2]
[365425561,1749664251656,-1211.37,0.00019669,2]
[365425562,1749664251666,-1633.38,0.00019669,2]
[365425563,1749664251675,-21449.52013615,0.0001967,3]
[365425564,1749664251685,-500.0,0.0001967,2]
[365425565,1749664251695,-151.0,0.0001967,2]
[365425566,1749664251704,-1211.37,0.0001967,2]
[365425567,1749664251714,-151.0,0.0001967,2]
[365425568,1749664251724,-151.0,0.0001967,2]
[365425569,1749664251734,-151.0,0.0001967,2]
[365425570,1749664251743,-1633.38,0.0001967,2]
[365425571,1749664251754,-1633.38,0.0001967,2]
[365425572,1749664251764,-1633.38,0.0001967,2]
[365425573,1749664251773,-601922.20646231,0.0001967,3]
[365425574,1749664251783,-833.29909032,0.0001967,3]
[365425575,1749664251793,-161.47204141,0.0001967,2]
[365425576,1749664251802,-3544.59702865,0.0001967,2]
[365425577,1749664251812,-151.0,0.00019671,2]
[365425578,1749664251821,-154.706023,0.00019671,2]
[365425579,1749664251832,-151.0,0.00019671,2]
[365425580,1749664251842,-151.0,0.00019671,2]
[365425581,1749664251852,-151.0,0.00019671,2]
[365425582,1749664251861,-151.0,0.00019671,2]
[365425583,1749664251871,-252.78851,0.00019671,2]
[365425584,1749664251880,-252.78851,0.00019671,2]
[365425585,1749664251889,-158.080536,0.00019671,2]
[365425586,1749664251899,-151.0,0.00019671,2]
[365425587,1749664251908,-153.985423,0.00019671,2]
[365425588,1749664251918,-151.0,0.00019671,2]
[365425589,1749664251927,-151.0,0.00019671,2]
[365425590,1749664251937,-207.686658,0.00019671,2]
[365425591,1749664251947,-207.686658,0.00019671,2]
[365425592,1749664251957,-151.0,0.00019671,2]
[365425593,1749664251968,-151.0,0.00019671,2]
[365425594,1749664251978,-151.940161,0.00019671,2]
[365425595,1749664251989,-151.0,0.00019671,2]
[365425596,1749664252002,-151.0,0.00019671,2]
[365425597,1749664252012,-529.233543,0.00019671,2]
[365425598,1749664252023,-529.233543,0.00019671,2]
[365425599,1749664252033,-151.0,0.00019671,2]
[365425600,1749664252043,-151.0,0.00019671,2]
[365425601,1749664252053,-151.0,0.00019671,2]
[365425602,1749664252063,-591.636512,0.00019671,2]
[365425603,1749664252074,-591.636512,0.00019671,2]
[365425604,1749664252084,-490.0,0.00019671,2]
[365425605,1749664252094,-490.0,0.00019671,2]
[365425606,1749664252103,-490.0,0.00019671,2]
[365425607,1749664252113,-490.0,0.00019671,2]
[365425608,1749664252124,-490.0,0.00019671,2]
[365425609,1749664252134,-490.0,0.00019671,2]
[365425610,1749664252144,-490.0,0.00019671,2]
[365425611,1749664252153,-490.0,0.00019671,2]
[365425612,1749664252163,-490.0,0.00019671,2]
[365425613,1749664252173,-490.0,0.00019671,2]
[365425614,1749664252183,-490.0,0.00019671,2]
[365425615,1749664252193,-490.0,0.00019671,2]
[365425616,1749664252202,-490.0,0.00019671,2]
[365425617,1749664252212,-490.0,0.00019671,2]
[365425618,1749664252222,-490.0,0.00019671,2]
[365425619,1749664252231,-490.0,0.00019671,2]
[365425620,1749664252241,-490.0,0.00019671,2]
[365425621,1749664252253,-490.0,0.00019671,2]
[365425622,1749664252263,-490.0,0.00019671,2]
[365425623,1749664252273,-490.0,0.00019671,2]
[365425624,1749664252283,-490.0,0.00019671,2]
[365425625,1749664252293,-490.0,0.00019671,2]
[365425626,1749664252303,-490.0,0.00019671,2]
[365425627,1749664252312,-490.0,0.00019671,2]
[365425628,1749664252322,-490.0,0.00019671,2]
[365425629,1749664252331,-490.0,0.00019671,2]
[365425630,1749664252341,-540.49,0.00019671,2]
[365425631,1749664252350,-490.0,0.00019671,2]
[365425632,1749664252359,-1114.51368,0.00019671,2]
[365425633,1749664252369,-1114.51368,0.00019671,2]
[365425634,1749664252380,-490.0,0.00019671,2]
[365425635,1749664252390,-490.0,0.00019671,2]
[365425636,1749664252400,-490.0,0.00019671,2]
[365425637,1749664252409,-490.0,0.00019671,2]
[365425638,1749664252418,-490.0,0.00019671,2]
[365425639,1749664252428,-490.0,0.00019671,2]
[365425640,1749664252437,-490.0,0.00019671,2]
[365425641,1749664252447,-490.0,0.00019671,2]
[365425642,1749664252458,-490.0,0.00019671,2]
[365425643,1749664252467,-490.0,0.00019671,2]
[365425644,1749664252477,-490.0,0.00019671,2]
[365425645,1749664252487,-813.83,0.00019671,2]
[365425646,1749664252499,-490.0,0.00019671,2]
[365425647,1749664252508,-490.0,0.00019671,2]
[365425648,1749664252518,-512.56,0.00019671,2]
[365425649,1749664252532,-627.11,0.00019671,2]
[365425650,1749664252541,-490.0,0.00019671,2]
[365425651,1749664252551,-490.0,0.00019671,2]
[365425652,1749664252560,-490.0,0.00019671,2]
[365425653,1749664252570,-503.81,0.00019671,2]
[365425654,1749664252580,-490.0,0.00019671,2]
[365425655,1749664252589,-490.0,0.00019671,2]
[365425656,1749664252599,-490.0,0.00019671,2]
[365425657,1749664252608,-490.0,0.00019671,2]
[365425658,1749664252618,-490.0,0.00019671,2]
[365425659,1749664252627,-490.0,0.00019671,2]
[365425660,1749664252636,-560.07,0.00019671,2]
[365425661,1749664252645,-490.0,0.00019671,2]
[365425662,1749664252654,-531.47,0.00019671,2]
[365425663,1749664252664,-816.42,0.00019671,2]
[365425664,1749664252673,-490.0,0.00019671,2]
[365425665,1749664252683,-227.82019758,0.00019671,2]
[365425666,1749664252693,-490.0,0.00019671,2]
[365425667,1749664252702,-490.0,0.00019671,2]
[365425668,1749664252711,-374.40475761,0.00019671,2]
[365425669,1749664252721,-490.0,0.00019671,2]
[365425670,1749664252730,-850.55,0.00019671,2]
[365425671,1749664252740,-490.0,0.00019671,2]
[365425672,1749664252749,-490.0,0.00019671,2]
[365425673,1749664252759,-490.0,0.00019671,2]
[365425674,1749664252768,-490.0,0.00019671,2]
[365425675,1749664252777,-490.0,0.00019671,2]
[365425676,1749664252786,-600.11,0.00019671,2]
[365425677,1749664252796,-666.25,0.00019671,2]
[365425678,1749664252805,-490.0,0.00019671,2]
[365425679,1749664252815,-250.04383789,0.00019671,2]
[365425680,1749664252824,-490.0,0.00019671,2]
[365425681,1749664252834,-844.13,0.00019671,2]
[365425682,1749664252843,-490.0,0.00019671,2]
[365425683,1749664252853,-596.21,0.00019671,2]
[365425684,1749664252862,-490.0,0.00019671,2]
[365425685,1749664252871,-490.0,0.00019671,2]
[365425686,1749664252880,-490.0,0.00019671,2]
[365425687,1749664252889,-490.0,0.00019671,2]
[365425688,1749664252899,-490.0,0.00019671,2]
[365425689,1749664252909,-723.73,0.00019671,2]
[365425690,1749664252919,-490.0,0.00019671,2]
[365425691,1749664252928,-612.74,0.00019671,2]
[365425692,1749664252937,-490.0,0.00019671,2]
[365425693,1749664252947,-493.54,0.00019671,2]
[365425694,1749664252957,-490.0,0.00019671,2]
[365425695,1749664252967,-490.0,0.00019671,2]
[365425696,1749664252976,-490.0,0.00019671,2]
[365425697,1749664252985,-490.0,0.00019671,2]
[365425698,1749664252994,-490.0,0.00019671,2]
[365425699,1749664253005,-843.72,0.00019671,2]
[365425700,1749664253015,-490.0,0.00019671,2]
[365425701,1749664253024,-532.28,0.00019671,2]
[365425702,1749664253034,-490.0,0.00019671,2]
[365425703,1749664253043,-490.0,0.00019671,2]
[365425704,1749664253053,-666.7,0.00019671,2]
[365425705,1749664253062,-490.0,0.00019671,2]
[365425706,1749664253072,-490.0,0.00019671,2]
[365425707,1749664253082,-490.0,0.00019671,2]
[365425708,1749664253091,-490.0,0.00019671,2]
[365425709,1749664253101,-490.0,0.00019671,2]
[365425710,1749664253110,-697.59,0.00019671,2]
[365425711,1749664253120,-490.0,0.00019671,2]
[365425712,1749664253129,-502.18,0.00019671,2]
[365425713,1749664253139,-490.0,0.00019671,2]
[365425714,1749664253148,-490.0,0.00019671,2]
[365425715,1749664253158,-499.63,0.00019671,2]
[365425716,1749664253168,-490.0,0.00019671,2]
[365425717,1749664253178,-490.0,0.00019671,2]
[365425718,1749664253191,-490.0,0.00019671,2]
[365425719,1749664253201,-490.0,0.00019671,2]
[365425720,1749664253211,-490.0,0.00019671,2]
[365425721,1749664253221,-506.21,0.00019671,2]
[365425722,1749664253231,-1036.53,0.00019671,2]
[365425723,1749664253241,-490.0,0.00019671,2]
[365425724,1749664253250,-490.0,0.00019671,2]
[365425725,1749664253260,-490.19,0.00019671,2]
[365425726,1749664253270,-490.0,0.00019671,2]
[365425727,1749664253280,-575.78,0.00019671,2]
[365425728,1749664253290,-511.63,0.00019671,2]
[365425729,1749664253300,-490.0,0.00019671,2]
[365425730,1749664253310,-490.0,0.00019671,2]
[365425731,1749664253319,-539.98,0.00019671,2]
[365425732,1749664253329,-490.0,0.00019671,2]
[365425733,1749664253339,-645.12,0.00019671,2]
[365425734,1749664253349,-490.0,0.00019671,2]
[365425735,1749664253359,-737.53,0.00019671,2]
[365425736,1749664253369,-490.0,0.00019671,2]
[365425737,1749664253379,-490.0,0.00019671,2]
[365425738,1749664253389,-818.95,0.00019671,2]
[365425739,1749664253399,-490.0,0.00019671,2]
[365425740,1749664253408,-490.0,0.00019671,2]
[365425741,1749664253418,-158.11746623,0.00019671,2]
[365425742,1749664253427,-490.0,0.00019671,2]
[365425743,1749664253437,-519.18,0.00019671,2]
[365425744,1749664253447,-669.15,0.00019671,2]
[365425745,1749664253456,-490.0,0.00019671,2]
[365425746,1749664253466,-250.0,0.00019671,2]
[365425747,1749664253475,-152.3301,0.00019671,2]
[365425748,1749664253485,-892.72,0.00019671,2]
[365425749,1749664253495,-744.03,0.00019671,2]
[365425750,1749664253506,-151.0,0.00019671,2]
[365425751,1749664253517,-644.81,0.00019671,2]
[365425752,1749664253529,-490.0,0.00019671,2]
[365425753,1749664253538,-1038.37,0.00019671,2]
[365425754,1749664253548,-496.26,0.00019671,2]
[365425755,1749664253557,-739.69,0.00019671,2]
[365425756,1749664253569,-1766.35,0.00019671,2]
[365425757,1749664253578,-3742.92,0.00019671,2]
[365425758,1749664253587,-551.75,0.00019671,2]
[365425759,1749664253598,-710.43,0.00019671,2]
[365425760,1749664253608,-627.29,0.00019671,2]
[365425761,1749664253617,-1941.66,0.00019671,2]
[365425762,1749664253627,-490.0,0.00019671,2]
[365425763,1749664253636,-545.28,0.00019671,2]
[365425764,1749664253646,-490.0,0.00019671,2]
[365425765,1749664253656,-1099.76,0.00019671,2]
[365425766,1749664253665,-490.0,0.00019671,2]
[365425767,1749664253675,-490.0,0.00019671,2]
[365425768,1749664253685,-2859.5,0.00019671,2]
[365425769,1749664253694,-1000.0,0.00019671,2]
[365425770,1749664253704,-810.9,0.00019671,2]
[365425771,1749664253714,-490.0,0.00019671,2]
[365425772,1749664253723,-591.58,0.00019671,2]
[365425773,1749664253734,-417.81,0.00019671,2]
[365425774,1749664253973,-490.0,0.00019671,2]
[365425775,1749664253992,-490.6,0.00019671,2]
[365425776,1749664254001,-6274.88,0.00019671,2]
[365425777,1749664254011,-490.0,0.00019671,2]
[365425778,1749664254021,-765.17,0.00019671,2]
[365425779,1749664254030,-490.0,0.00019671,2]
[365425780,1749664254040,-490.0,0.00019671,2]
[365425781,1749664254049,-967.2,0.00019671,2]
[365425782,1749664254058,-490.0,0.00019671,2]
[365425783,1749664254068,-2665.06,0.00019671,2]
[365425784,1749664254078,-490.0,0.00019671,2]
[365425785,1749664254087,-583.92,0.00019671,2]
[365425786,1749664254096,-490.0,0.00019671,2]
[365425787,1749664254105,-751.65,0.00019671,2]
[365425788,1749664254114,-887.68,0.00019671,2]
[365425789,1749664254124,-526.33001324,0.00019671,2]
[365425790,1749664254134,-490.0,0.00019671,2]
[365425791,1749664254143,-490.0,0.00019671,2]
[365425792,1749664254153,-613.65,0.00019671,2]
[365425793,1749664254162,-508.01,0.00019671,2]
[365425794,1749664254172,-4954.42,0.00019671,2]
[365425795,1749664254182,-1793.01,0.00019671,2]
[365425796,1749664254191,-490.0,0.00019671,2]
[365425797,1749664254200,-490.0,0.00019671,2]
[365425798,1749664254209,-681.26,0.00019671,2]
[365425799,1749664254219,-706.34,0.00019671,2]
[365425800,1749664254228,-490.0,0.00019671,2]
[365425801,1749664254237,-490.0,0.00019671,2]
[365425802,1749664254247,-1072.31,0.00019671,2]
[365425803,1749664254258,-490.0,0.00019671,2]
[365425804,1749664254267,-490.0,0.00019671,2]
[365425805,1749664254276,-490.0,0.00019671,2]
[365425806,1749664254286,-490.0,0.00019671,2]
[365425807,1749664254296,-490.0,0.00019671,2]
[365425808,1749664254305,-591.66,0.00019671,2]
[365425809,1749664254315,-2882.68,0.00019671,2]
[365425810,1749664254324,-490.0,0.00019671,2]
[365425811,1749664254334,-490.0,0.00019671,2]
[365425812,1749664254343,-1592.46,0.00019671,2]
[365425813,1749664254352,-490.0,0.00019671,2]
[365425814,1749664254362,-772.88,0.00019671,2]
[365425815,1749664254371,-151.0,0.00019671,2]
[365425816,1749664254381,-490.0,0.00019671,2]
[365425817,1749664254391,-490.0,0.00019671,2]
[365425818,1749664254400,-628.18,0.00019671,2]
[365425819,1749664254409,-1396.99,0.00019671,2]
[365425820,1749664254418,-151.0,0.00019671,2]
[365425821,1749664254427,-1056.26,0.00019671,2]
[365425822,1749664254437,-824.41,0.00019671,2]
[365425823,1749664254447,-851.75,0.00019671,2]
[365425824,1749664254456,-490.0,0.00019671,2]
[365425825,1749664254465,-1036.29,0.00019671,2]
[365425826,1749664254475,-490.0,0.00019671,2]
[365425827,1749664254484,-621.51,0.00019671,2]
[365425828,1749664254493,-982.57,0.00019671,2]
[365425829,1749664254504,-490.0,0.00019671,2]
[365425830,1749664254513,-490.0,0.00019671,2]
[365425831,1749664254524,-490.0,0.00019671,2]
[365425832,1749664254534,-490.0,0.00019671,2]
[365425833,1749664254544,-490.0,0.00019671,2]
[365425834,1749664254554,-1715.86,0.00019671,2]
[365425835,1749664254564,-490.0,0.00019671,2]
[365425836,1749664254574,-490.0,0.00019671,2]
[365425837,1749664254583,-490.0,0.00019671,2]
[365425838,1749664254593,-689.63,0.00019671,2]
[365425839,1749664254604,-490.0,0.00019671,2]
[365425840,1749664254614,-490.0,0.00019671,2]
[365425841,1749664254624,-865.21,0.00019671,2]
[365425842,1749664254634,-1292.01,0.00019671,2]
[365425843,1749664254644,-490.0,0.00019671,2]
[365425844,1749664254654,-490.0,0.00019671,2]
[365425845,1749664254664,-538.16,0.00019671,2]
[365425846,1749664254673,-490.0,0.00019671,2]
[365425847,1749664254683,-490.0,0.00019671,2]
[365425848,1749664254693,-581.41,0.00019671,2]
[365425849,1749664254702,-538.04,0.00019671,2]
[365425850,1749664254711,-630.31,0.00019671,2]
[365425851,1749664254721,-490.0,0.00019671,2]
[365425852,1749664254731,-619.62,0.00019671,2]
[365425853,1749664254741,-490.0,0.00019671,2]
[365425854,1749664254752,-545.79,0.00019671,2]
[365425855,1749664254761,-5455.39,0.00019671,2]
[365425856,1749664254771,-490.0,0.00019671,2]
[365425857,1749664254781,-578.51,0.00019671,2]
[365425858,1749664254791,-490.0,0.00019671,2]
[365425859,1749664254801,-869.31,0.00019671,2]
[365425860,1749664254810,-7091.69,0.00019671,2]
[365425861,1749664254821,-1578.74,0.00019671,2]
[365425862,1749664254831,-490.0,0.00019671,2]
[365425863,1749664254840,-490.0,0.00019671,2]
[365425864,1749664254850,-490.0,0.00019671,2]
[365425865,1749664254860,-490.0,0.00019671,2]
[365425866,1749664254869,-819.06,0.00019671,2]
[365425867,1749664254878,-519.97,0.00019671,2]
[365425868,1749664254888,-490.0,0.00019671,2]
[365425869,1749664254898,-151.0,0.00019671,2]
[365425870,1749664254908,-1328.38,0.00019671,2]
[365425871,1749664254919,-1017.44,0.00019671,2]
[365425872,1749664254929,-490.0,0.00019671,2]
[365425873,1749664254939,-490.0,0.00019671,2]
[365425874,1749664254949,-638.23,0.00019671,2]
[365425875,1749664254958,-490.0,0.00019671,2]
[365425876,1749664254967,-490.0,0.00019671,2]
[365425877,1749664254976,-853.47,0.00019671,2]
[365425878,1749664254986,-1762.157735,0.00019671,2]
[365425879,1749664254996,-1459.54,0.00019671,2]
[365425880,1749664255007,-509.78,0.00019671,2]
[365425881,1749664255017,-956.22,0.00019671,2]
[365425882,1749664255027,-1668.79,0.00019671,2]
[365425883,1749664255036,-563.11,0.00019671,2]
[365425884,1749664255046,-151.785131,0.00019671,2]
[365425885,1749664255055,-1762.157735,0.00019671,2]
[365425886,1749664255064,-768.89,0.00019671,2]
[365425887,1749664255073,-490.0,0.00019671,2]
[365425888,1749664255083,-556.57,0.00019671,2]
[365425889,1749664255092,-782.98,0.00019671,2]
[365425890,1749664255101,-490.0,0.00019671,2]
[365425891,1749664255111,-490.0,0.00019671,2]
[365425892,1749664255121,-490.0,0.00019671,2]
[365425893,1749664255131,-490.0,0.00019671,2]
[365425894,1749664255141,-3243.25,0.00019671,2]
[365425895,1749664255151,-490.0,0.00019671,2]
[365425896,1749664255161,-534.84,0.00019671,2]
[365425897,1749664255171,-490.0,0.00019671,2]
[365425898,1749664255181,-490.0,0.00019671,2]
[365425899,1749664255191,-622.95,0.00019671,2]
[365425900,1749664255200,-628.78,0.00019671,2]
[365425901,1749664255210,-490.0,0.00019671,2]
[365425902,1749664255220,-836.19,0.00019671,2]
[365425903,1749664255230,-1251.96,0.00019671,2]
[365425904,1749664255240,-779.51,0.00019671,2]
[365425905,1749664255250,-2676.7,0.00019671,2]
[365425906,1749664255260,-536.75,0.00019671,2]
[365425907,1749664255270,-490.0,0.00019671,2]
[365425908,1749664255279,-366.00024451,0.00019671,2]
[365425909,1749664255289,-1108.13,0.00019671,2]
[365425910,1749664255298,-711.18,0.00019671,2]
[365425911,1749664255308,-490.0,0.00019671,2]
[365425912,1749664255318,-490.0,0.00019671,2]
[365425913,1749664255328,-1699.0,0.00019671,2]
[365425914,1749664255337,-151.0,0.00019671,2]
[365425915,1749664255348,-490.0,0.00019671,2]
[365425916,1749664255360,-490.0,0.00019671,2]
[365425917,1749664255370,-757.06,0.00019671,2]
[365425918,1749664255380,-490.0,0.00019671,2]
[365425919,1749664255390,-609.19,0.00019671,2]
[365425920,1749664255399,-294.04731029,0.00019671,2]
[365425921,1749664255409,-490.0,0.00019671,2]
[365425922,1749664255418,-2133.29,0.00019671,2]
[365425923,1749664255427,-490.0,0.00019671,2]
[365425924,1749664255437,-490.0,0.00019671,2]
[365425925,1749664255446,-557.38,0.00019671,2]
[365425926,1749664255455,-490.0,0.00019671,2]
[365425927,1749664255465,-490.0,0.00019671,2]
[365425928,1749664255475,-490.0,0.00019671,2]
[365425929,1749664255484,-490.0,0.00019671,2]
[365425930,1749664255493,-490.0,0.00019671,2]
[365425931,1749664255503,-490.0,0.00019671,2]
[365425932,1749664255512,-490.0,0.00019671,2]
[365425933,1749664255522,-892.62,0.00019671,2]
[365425934,1749664255534,-151.0,0.00019671,2]
[365425935,1749664255543,-538.914135,0.00019671,2]
[365425936,1749664255553,-631.05,0.00019671,2]
[365425937,1749664255562,-490.0,0.00019671,2]
[365425938,1749664255573,-799.7,0.00019671,2]
[365425939,1749664255582,-1515.41,0.00019671,2]
[365425940,1749664255591,-616.92,0.00019671,2]
[365425941,1749664255603,-490.0,0.00019671,2]
[365425942,1749664255612,-490.0,0.00019671,2]
[365425943,1749664255622,-854.08,0.00019671,2]
[365425944,1749664255632,-490.0,0.00019671,2]
[365425945,1749664255641,-184.57545461,0.00019671,2]
[365425946,1749664255651,-490.0,0.00019671,2]
[365425947,1749664255660,-1680.0,0.00019681,2]
[365425948,1749664255670,-420.0,0.00019685,2]
[365425949,1749664255679,-541.70927701,0.00019693,2]
[365425950,1749664255688,-204.0,0.00019707,4]
[365425951,1749664255698,-1699.12219315,0.00019717,2]
[365425952,1749664255707,-207.23714623,0.00019717,2]
[365425953,1749664255717,-156.672943,0.00019724,2]
[365425954,1749664255726,-156.587,0.00019726,2]
[365425955,1749664255735,-541.70927701,0.00019728,2]
[365425956,1749664255744,-250.0,0.00019744,2]
[365425957,1749664255755,-150.0,0.00019746,2]
[365425958,1749664255765,-500.0,0.00019757,2]
[365425959,1749664255774,-1000.0,0.00019757,2]
[365425960,1749664255784,-541.70927701,0.00019762,2]
[365425961,1749664255794,-1000.0,0.00019775,2]
[365425962,1749664255803,-200.0,0.00019782,2]
[365425963,1749664255812,-200.0,0.00019782,2]
[365425964,1749664255822,-200.0,0.00019782,2]
[365425965,1749664255831,-156.672943,0.00019783,2]
[365425966,1749664255840,-150.0,0.00019788,2]
[365425967,1749664255850,-1000.0,0.0001979,2]
[365425968,1749664255860,-541.70927701,0.00019797,2]
[365425969,1749664255870,-15000.0,0.000198,2]
[365425970,1749664255879,-1000.0,0.000198,2]
[365425971,1749664255888,-1000.0,0.000198,2]
[365425972,1749664255898,-1000.0,0.000198,2]
[365425973,1749664255907,-151.0,0.000198,2]
[365425974,1749664255916,-151.0,0.000198,2]
[365425975,1749664255925,-151.0,0.000198,2]
[365425976,1749664255935,-152.045596,0.000198,2]
[365425977,1749664255944,-151.0,0.000198,2]
[365425978,1749664255953,-354.212643,0.000198,2]
[365425979,1749664255963,-155.946081,0.000198,2]
[365425980,1749664255972,-151.0,0.000198,2]
[365425981,1749664255981,-151.333948,0.000198,2]
[365425982,1749664255991,-151.0,0.000198,2]
[365425983,1749664256000,-150.0,0.000198,2]
[365425984,1749664256011,-1000.0,0.000198,2]
[365425985,1749664256021,-1000.0,0.000198,2]
[365425986,1749664256030,-1000.0,0.000198,2]
[365425987,1749664256040,-1000.0,0.000198,2]
[365425988,1749664256049,-1699.12219315,0.00019809,2]
[365425989,1749664256059,-207.23714623,0.00019809,2]
[365425990,1749664256068,-3708.2893322,0.00019828,2]
[365425991,1749664256077,-541.70927701,0.00019831,2]
[365425992,1749664256087,-177.44661601,0.00019834,2]
[365425993,1749664256096,-1211.37,0.00019834,2]
[365425994,1749664256105,-1633.38,0.00019834,2]
[365425995,1749664256115,-151.0,0.00019835,2]
[365425996,1749664256124,-151.0,0.00019835,2]
[365425997,1749664256133,-151.0,0.00019835,2]
[365425998,1749664256142,-151.0,0.00019835,2]
[365425999,1749664256152,-151.0,0.00019835,2]
[365426000,1749664256161,-151.212301,0.00019835,2]
[365426001,1749664256171,-335.555606,0.00019835,2]
[365426002,1749664256181,-335.555606,0.00019835,2]
[365426003,1749664256190,-151.0,0.00019835,2]
[365426004,1749664256199,-151.0,0.00019835,2]
[365426005,1749664256208,-151.0,0.00019835,2]
[365426006,1749664256217,-151.0,0.00019835,2]
[365426007,1749664256227,-151.0,0.00019835,2]
[365426008,1749664256236,-181.475385,0.00019835,2]
[365426009,1749664256246,-181.475385,0.00019835,2]
[365426010,1749664256314,-151.994093,0.00019835,2]
[365426011,1749664256324,-252.78851,0.00019835,2]
[365426012,1749664256333,-252.78851,0.00019835,2]
[365426013,1749664256343,-207.686658,0.00019835,2]
[365426014,1749664256352,-207.686658,0.00019835,2]
[365426015,1749664256362,-151.0,0.00019835,2]
[365426016,1749664256371,-183.508475,0.00019835,2]
[365426017,1749664256381,-151.0,0.00019835,2]
[365426018,1749664256391,-529.233543,0.00019835,2]
[365426019,1749664256400,-529.233543,0.00019835,2]
[365426020,1749664256410,-151.0,0.00019835,2]
[365426021,1749664256419,-151.0,0.00019835,2]